fUSD/lending_fUSD_20240828
["ID","MTS","AMOUNT","RATE_DAILY","PERIOD"]
[336492365,1724877298448,-500.0,0.0003863,120]
[336492366,1724877298481,-2371.02,0.0003863,120]
[336492367,1724877298516,-500.0,0.0003863,120]
[336492368,1724877298549,-3052.18,0.0003863,120]
[336492369,1724877298580,-500.0,0.0003863,120]
[336492370,1724877298613,-500.0,0.0003863,120]
[336492371,1724877298646,-500.0,0.0003863,120]
[336492372,1724877298683,-2242.76,0.0003863,120]
[336492373,1724877298718,-1342.65,0.0003863,120]
[336492374,1724877298751,-500.0,0.0003863,120]
[336492375,1724877298783,-3389.36,0.0003863,120]
[336492376,1724877298815,-759.89,0.0003863,120]
[336492377,1724877298848,-500.0,0.0003863,120]
[336492378,1724877298881,-500.0,0.0003863,120]
[336492379,1724877298913,-6002.93,0.0003863,120]
[336492380,1724877298953,-500.0,0.0003863,120]
[336492381,1724877298986,-500.0,0.0003863,120]
[336492382,1724877299018,-401.65622129,0.0003863,120]
[336492383,1724877299051,-500.0,0.0003863,120]
[336492384,1724877299082,-500.0,0.0003863,120]
[336492385,1724877299113,-802.1,0.0003863,120]
[336492386,1724877299144,-500.0,0.0003863,120]
[336492387,1724877299175,-675.44,0.0003863,120]
[336492388,1724877299210,-816.4,0.0003863,120]
[336492389,1724877299243,-501.67259979,0.0003863,120]
[336492390,1724877299282,-2334.87,0.0003863,120]
[336492391,1724877299314,-521.04,0.0003863,120]
[336492392,1724877299349,-1412.95,0.0003863,120]
[336492393,1724877299382,-500.0,0.0003863,120]
[336492394,1724877299414,-500.0,0.0003863,120]
[336492395,1724877299456,-1342.44,0.0003863,120]
[336492396,1724877299488,-2858.45,0.0003863,120]
[336492397,1724877299520,-500.0,0.0003863,120]
[336492398,1724877299552,-3128.03,0.0003863,120]
[336492399,1724877299583,-1574.08,0.0003863,120]
[336492400,1724877299615,-1277.26,0.0003863,120]
[336492401,1724877299651,-799.71,0.0003863,120]
[336492402,1724877299685,-5034.92,0.0003863,120]
[336492403,1724877299724,-500.0,0.0003863,120]
[336492404,1724877299757,-500.0,0.0003863,120]
[336492405,1724877299795,-6560.65,0.0003863,120]
[336492406,1724877299830,-4352.1,0.0003863,120]
[336492407,1724877299864,-848.04,0.0003863,120]
[336492408,1724877299900,-500.0,0.0003863,120]
[336492409,1724877299941,-7869.16,0.0003863,120]
[336492410,1724877299976,-1005.16279569,0.0003863,120]
[336492411,1724877300011,-1678.32,0.0003863,120]
[336492412,1724877300048,-528.32,0.0003863,120]
[336492413,1724877300086,-500.0,0.0003863,120]
[336492414,1724877300133,-500.0,0.0003863,120]
[336492415,1724877300170,-532.79804885,0.0003863,120]
[336492416,1724877300215,-1029.52,0.0003863,120]
[336492417,1724877300252,-552.8,0.0003863,120]
[336492418,1724877300287,-2173.51,0.0003863,120]
[336492419,1724877300322,-500.53285921,0.0003863,120]
[336492420,1724877300359,-500.0,0.0003863,120]
[336492421,1724877300396,-2168.9,0.0003863,120]
[336492422,1724877300431,-500.0,0.0003863,120]
[336492423,1724877300469,-1728.55,0.0003863,120]
[336492424,1724877300501,-343.6269682,0.0003863,120]
[336492425,1724877300534,-3072.44,0.0003863,120]
[336492426,1724877300567,-1338.73,0.0003863,120]
[336492427,1724877300601,-500.0,0.0003863,120]
[336492428,1724877300639,-500.0,0.0003863,120]
[336492429,1724877300675,-500.0,0.0003863,120]
[336492430,1724877300713,-500.0,0.0003863,120]
[336492431,1724877300755,-500.0,0.0003863,120]
[336492432,1724877300792,-1829.39,0.0003863,120]
[336492433,1724877300829,-527.64,0.0003863,120]
[336492434,1724877300865,-500.45781927,0.0003863,120]
[336492435,1724877300900,-500.0,0.0003863,120]
[336492436,1724877300937,-500.0,0.0003863,120]
[336492437,1724877300976,-500.0,0.0003863,120]
[336492438,1724877301009,-508.07115193,0.0003863,120]
[336492439,1724877301042,-3377.55,0.0003863,120]
[336492440,1724877301074,-1019.43,0.0003863,120]
[336492441,1724877301107,-500.0,0.0003863,120]
[336492442,1724877301141,-3644.7,0.0003863,120]
[336492443,1724877301173,-909.03,0.0003863,120]
[336492444,1724877301205,-501.34272152,0.0003863,120]
[336492445,1724877301237,-1795.11,0.0003863,120]
[336492446,1724877301269,-500.0,0.0003863,120]
[336492447,1724877301302,-568.5,0.0003863,120]
[336492448,1724877301333,-500.0,0.0003863,120]
[336492449,1724877301371,-996.82,0.0003863,120]
[336492450,1724877301404,-500.0,0.0003863,120]
[336492451,1724877301439,-500.0,0.0003863,120]
[336492452,1724877301471,-670.71,0.0003863,120]
[336492453,1724877301704,-500.0,0.0003863,120]
[336492454,1724877301745,-500.0,0.0003863,120]
[336492455,1724877301780,-151.0,0.0003863,120]
[336492456,1724877301813,-1378.37391938,0.0003888,90]
[336492457,1724877301845,-250.465542,0.00038904,120]
[336492458,1724877301879,-6464.652118,0.00038904,120]
[336492459,1724877301912,-8088.157906,0.00038904,120]
[336492460,1724877301949,-152.330078,0.00038904,120]
[336492461,1724877301983,-500.0,0.00038904,120]
[336492462,1724877302015,-2474.966237,0.00038904,120]
[336492463,1724877302046,-500.0,0.00038904,120]
[336492464,1724877302078,-500.0,0.00038904,120]
[336492465,1724877302111,-510.63954899,0.00038904,120]
[336492466,1724877302143,-500.0,0.00038904,120]
[336492467,1724877302179,-574.12840341,0.00038904,120]
[336492468,1724877302218,-500.0,0.00038904,120]
[336492469,1724877302251,-500.0,0.00038904,120]
[336492470,1724877302282,-500.0,0.00038904,120]
[336492471,1724877302313,-500.0,0.00038904,120]
[336492472,1724877302351,-500.0,0.00038904,120]
[336492473,1724877302384,-500.0,0.00038904,120]
[336492474,1724877302418,-500.0,0.00038904,120]
[336492475,1724877302460,-500.0,0.00038904,120]
[336492476,1724877302491,-500.0,0.00038904,120]
[336492477,1724877302522,-500.0,0.00038904,120]
[336492478,1724877302554,-500.0,0.00038904,120]
[336492479,1724877302585,-498.47386663,0.00038904,120]
[336492480,1724877302616,-500.0,0.00038904,120]
[336492481,1724877302649,-503.72566802,0.00038904,120]
[336492482,1724877302681,-500.0,0.00038904,120]
[336492483,1724877302718,-500.0,0.00038904,120]
[336492484,1724877302749,-500.0,0.00038904,120]
[336492485,1724877302779,-500.0,0.00038904,120]
[336492486,1724877302809,-281.27158398,0.00038904,120]
[336492487,1724877302839,-500.0,0.00038904,120]
[336492488,1724877302868,-500.0,0.00038904,120]
[336492489,1724877302900,-500.0,0.00038904,120]
[336492490,1724877302934,-648.28030457,0.00038904,120]
[336492491,1724877302969,-500.0,0.00038904,120]
[336492492,1724877303003,-500.0,0.00038904,120]
[336492493,1724877303044,-500.0,0.00038904,120]
[336492494,1724877303086,-500.0,0.00038904,120]
[336492495,1724877303126,-211.2538537,0.00038904,120]
[336492496,1724877303166,-500.0,0.00038904,120]
[336492497,1724877303204,-500.0,0.00038904,120]
[336492498,1724877303244,-500.0,0.00038904,120]
[336492499,1724877303282,-500.0,0.00038904,120]
[336492500,1724877303320,-500.93336173,0.00038904,120]
[336492501,1724877303365,-500.0,0.00038904,120]
[336492502,1724877303406,-500.0,0.00038904,120]
[336492503,1724877303450,-539.08627017,0.00038904,120]
[336492504,1724877303491,-500.0,0.00038904,120]
[336492505,1724877303528,-501.39104082,0.00038904,120]
[336492506,1724877303566,-500.0,0.00038904,120]
[336492507,1724877303603,-500.0,0.00038904,120]
[336492508,1724877303641,-500.0,0.00038904,120]
[336492509,1724877303678,-500.0,0.00038904,120]
[336492510,1724877303715,-500.0,0.00038904,120]
[336492511,1724877303751,-493.67323242,0.00038904,120]
[336492512,1724877303788,-500.0,0.00038904,120]
[336492513,1724877303823,-500.0,0.00038904,120]
[336492514,1724877303861,-500.0,0.00038904,120]
[336492515,1724877303901,-500.0,0.00038904,120]
[336492516,1724877303944,-500.0,0.00038904,120]
[336492517,1724877303983,-500.0,0.00038904,120]
[336492518,1724877304023,-500.0,0.00038904,120]
[336492519,1724877304062,-2514.12,0.00038904,120]
[336492520,1724877304100,-663.98,0.00038904,120]
[336492521,1724877304138,-500.0,0.00038904,120]
[336492522,1724877304175,-500.0,0.00038904,120]
[336492523,1724877304212,-500.0,0.00038904,120]
[336492524,1724877304249,-584.76,0.00038904,120]
[336492525,1724877304287,-500.0,0.00038904,120]
[336492526,1724877304325,-500.0,0.00038904,120]
[336492527,1724877304366,-500.0,0.00038904,120]
[336492528,1724877304405,-500.0,0.00038904,120]
[336492529,1724877304448,-854.26,0.00038904,120]
[336492530,1724877304485,-712.2,0.00038904,120]
[336492531,1724877304522,-500.0,0.00038904,120]
[336492532,1724877304560,-500.0,0.00038904,120]
[336492533,1724877304598,-500.0,0.00038904,120]
[336492534,1724877304635,-1000.0,0.00038904,120]
[336492535,1724877304673,-500.0,0.00038904,120]
[336492536,1724877304712,-500.0,0.00038904,120]
[336492537,1724877304749,-500.0,0.00038904,120]
[336492538,1724877304785,-956.24,0.00038904,120]
[336492539,1724877304821,-500.0,0.00038904,120]
[336492540,1724877304857,-1398.15,0.00038904,120]
[336492541,1724877304893,-1146.35,0.00038904,120]
[336492542,1724877304931,-708.33,0.00038904,120]
[336492543,1724877304969,-1744.16,0.00038904,120]
[336492544,1724877305007,-500.0,0.00038904,120]
[336492545,1724877305043,-500.0,0.00038904,120]
[336492546,1724877305080,-500.0,0.00038904,120]
[336492547,1724877305118,-500.0,0.00038904,120]
[336492548,1724877305154,-500.0,0.00038904,120]
[336492549,1724877305190,-1030.03,0.00038904,120]
[336492550,1724877305229,-612.97,0.00038904,120]
[336492551,1724877305266,-1829.82,0.00038904,120]
[336492552,1724877305303,-1974.9,0.00038904,120]
[336492553,1724877305346,-643.84,0.00038904,120]
[336492554,1724877305396,-500.0,0.00038904,120]
[336492555,1724877305442,-500.0,0.00038904,120]
[336492556,1724877305489,-451.711873,0.00038904,120]
[336492557,1724877305726,-500.0,0.00038904,120]
[336492558,1724877305764,-3295.88,0.00038904,120]
[336492559,1724877305802,-842.36,0.00038904,120]
[336492560,1724877305840,-500.0,0.00038904,120]
[336492561,1724877305880,-663.59,0.00038904,120]
[336492562,1724877305920,-1150.14,0.00038904,120]
[336492563,1724877305959,-500.0,0.00038904,120]
[336492564,1724877305999,-500.0,0.00038904,120]
[336492565,1724877306039,-792.46,0.00038904,120]
[336492566,1724877306078,-500.0,0.00038904,120]
[336492567,1724877306117,-876.74,0.00038904,120]
[336492568,1724877306155,-271.12,0.00038904,120]
[336492569,1724877306195,-686.25,0.00038904,120]
[336492570,1724877306233,-495.34434179,0.00038904,120]
[336492571,1724877306270,-797.71,0.00038904,120]
[336492572,1724877306304,-500.0,0.00038904,120]
[336492573,1724877306342,-1012.6,0.00038904,120]
[336492574,1724877306378,-500.0,0.00038904,120]
[336492575,1724877306417,-500.0,0.00038904,120]
[336492576,1724877306455,-500.0,0.00038904,120]
[336492577,1724877306492,-1105.27,0.00038904,120]
[336492578,1724877306529,-500.0,0.00038904,120]
[336492579,1724877306565,-500.0,0.00038904,120]
[336492580,1724877306601,-723.37,0.00038904,120]
[336492581,1724877306638,-984.85,0.00038904,120]
[336492582,1724877306674,-500.0,0.00038904,120]
[336492583,1724877306712,-840.71,0.00038904,120]
[336492584,1724877306748,-500.0,0.00038904,120]
[336492585,1724877306783,-596.35970263,0.00038904,120]
[336492586,1724877306818,-697.76,0.00038904,120]
[336492587,1724877306853,-500.0,0.00038904,120]
[336492588,1724877306887,-1119.02,0.00038904,120]
[336492589,1724877306922,-500.0,0.00038904,120]
[336492590,1724877306958,-637.26,0.00038904,120]
[336492591,1724877306994,-500.0,0.00038904,120]
[336492592,1724877307029,-928.61,0.00038904,120]
[336492593,1724877307064,-500.0,0.00038904,120]
[336492594,1724877307098,-500.0,0.00038904,120]
[336492595,1724877307132,-500.0,0.00038904,120]
[336492596,1724877307167,-500.0,0.00038904,120]
[336492597,1724877307201,-710.31,0.00038904,120]
[336492598,1724877307234,-199.20186536,0.00038904,120]
[336492599,1724877307270,-500.0,0.00038904,120]
[336492600,1724877307304,-2041.33,0.00038904,120]
[336492601,1724877307341,-500.0,0.00038904,120]
[336492602,1724877307375,-500.0,0.00038904,120]
[336492603,1724877307410,-618.49,0.00038904,120]
[336492604,1724877307448,-500.0,0.00038904,120]
[336492605,1724877307484,-686.97,0.00038904,120]
[336492606,1724877307520,-500.0,0.00038904,120]
[336492607,1724877307556,-664.34,0.00038904,120]
[336492608,1724877307592,-876.88,0.00038904,120]
[336492609,1724877307627,-500.0,0.00038904,120]
[336492610,1724877307661,-500.0,0.00038904,120]
[336492611,1724877307695,-500.0,0.00038904,120]
[336492612,1724877307729,-573.23,0.00038904,120]
[336492613,1724877307764,-672.86,0.00038904,120]
[336492614,1724877307802,-625.19873794,0.00038904,120]
[336492615,1724877307837,-500.0,0.00038904,120]
[336492616,1724877307874,-1830.86,0.00038904,120]
[336492617,1724877307910,-500.0,0.00038904,120]
[336492618,1724877307953,-500.0,0.00038904,120]
[336492619,1724877307989,-643.24,0.00038904,120]
[336492620,1724877308026,-500.0,0.00038904,120]
[336492621,1724877308062,-500.0,0.00038904,120]
[336492622,1724877308100,-500.0,0.00038904,120]
[336492623,1724877308142,-500.0,0.00038904,120]
[336492624,1724877308180,-1226.36,0.00038904,120]
[336492625,1724877308218,-741.28,0.00038904,120]
[336492626,1724877308254,-1790.64,0.00038904,120]
[336492627,1724877308290,-501.92884055,0.00038904,120]
[336492628,1724877308324,-512.24336233,0.00038904,120]
[336492629,1724877308360,-500.0,0.00038904,120]
[336492630,1724877308396,-500.0,0.00038904,120]
[336492631,1724877308431,-966.65,0.00038904,120]
[336492632,1724877308470,-500.0,0.00038904,120]
[336492633,1724877308504,-1101.57,0.00038904,120]
[336492634,1724877308538,-500.0,0.00038904,120]
[336492635,1724877308573,-624.61,0.00038904,120]
[336492636,1724877308607,-500.0,0.00038904,120]
[336492637,1724877308642,-500.0,0.00038904,120]
[336492638,1724877308679,-500.0,0.00038904,120]
[336492639,1724877308720,-500.0,0.00038904,120]
[336492640,1724877308755,-500.0,0.00038904,120]
[336492641,1724877308791,-500.0,0.00038904,120]
[336492642,1724877308828,-500.0,0.00038904,120]
[336492643,1724877308865,-500.0,0.00038904,120]
[336492644,1724877308902,-237.57546559,0.00038904,120]
[336492645,1724877308941,-1031.33,0.00038904,120]
[336492646,1724877308991,-1115.7,0.00038904,120]
[336492647,1724877309032,-537.66757076,0.00038904,120]
[336492648,1724877309070,-500.0,0.00038904,120]
[336492649,1724877309108,-500.0,0.00038904,120]
[336492650,1724877309146,-556.44,0.00038904,120]
[336492651,1724877309184,-500.0,0.00038904,120]
[336492652,1724877309225,-582.26763651,0.00038904,120]
[336492653,1724877309264,-500.0,0.00038904,120]
[336492654,1724877309302,-778.59,0.00038904,120]
[336492655,1724877309344,-500.0,0.00038904,120]
[336492656,1724877309381,-500.0,0.00038904,120]
[336492657,1724877309419,-510.25019722,0.00038904,120]
[336492658,1724877309456,-500.0,0.00038904,120]
[336492659,1724877309494,-500.0,0.00038904,120]
[336492660,1724877309535,-500.0,0.00038904,120]
[336492661,1724877309781,-500.0,0.00038904,120]
[336492662,1724877309826,-500.0,0.00038904,120]
[336492663,1724877309869,-573.03960223,0.00038904,120]
[336492664,1724877309913,-500.0,0.00038904,120]
[336492665,1724877309957,-1249.59,0.00038904,120]
[336492666,1724877309995,-508.42337092,0.00038904,120]
[336492667,1724877310032,-500.0,0.00038904,120]
[336492668,1724877310069,-500.0,0.00038904,120]
[336492669,1724877310107,-500.0,0.00038904,120]
[336492670,1724877310144,-841.13,0.00038904,120]
[336492671,1724877310183,-500.0,0.00038904,120]
[336492672,1724877310220,-500.0,0.00038904,120]
[336492673,1724877310255,-2787.48,0.00038904,120]
[336492674,1724877310291,-516.49,0.00038904,120]
[336492675,1724877310328,-500.0,0.00038904,120]
[336492676,1724877310367,-500.0,0.00038904,120]
[336492677,1724877310404,-500.0,0.00038904,120]
[336492678,1724877310440,-500.0,0.00038904,120]
[336492679,1724877310480,-704.05,0.00038904,120]
[336492680,1724877310515,-500.0,0.00038904,120]
[336492681,1724877310549,-500.0,0.00038904,120]
[336492682,1724877310588,-500.0,0.00038904,120]
[336492683,1724877310625,-500.0,0.00038904,120]
[336492684,1724877310663,-500.0,0.00038904,120]
[336492685,1724877310699,-500.0,0.00038904,120]
[336492686,1724877310743,-500.0,0.00038904,120]
[336492687,1724877310784,-500.0,0.00038904,120]
[336492688,1724877310820,-500.0,0.00038904,120]
[336492689,1724877310855,-1051.82,0.00038904,120]
[336492690,1724877310892,-500.0,0.00038904,120]
[336492691,1724877310928,-752.36,0.00038904,120]
[336492692,1724877310966,-601.79,0.00038904,120]
[336492693,1724877311003,-1885.15,0.00038904,120]
[336492694,1724877311038,-535.4,0.00038904,120]
[336492695,1724877311074,-500.0,0.00038904,120]
[336492696,1724877311110,-944.51,0.00038904,120]
[336492697,1724877311146,-500.0,0.00038904,120]
[336492698,1724877311180,-500.0,0.00038904,120]
[336492699,1724877311220,-500.0,0.00038904,120]
[336492700,1724877311254,-500.0,0.00038904,120]
[336492701,1724877311291,-500.0,0.00038904,120]
[336492702,1724877311327,-500.0,0.00038904,120]
[336492703,1724877311365,-511.10626873,0.00038904,120]
[336492704,1724877311402,-1414.82,0.00038904,120]
[336492705,1724877311438,-500.0,0.00038904,120]
[336492706,1724877311477,-500.0,0.00038904,120]
[336492707,1724877311514,-500.0,0.00038904,120]
[336492708,1724877311551,-540.26129351,0.00038904,120]
[336492709,1724877311590,-957.21,0.00038904,120]
[336492710,1724877311630,-737.98,0.00038904,120]
[336492711,1724877311669,-500.0,0.00038904,120]
[336492712,1724877311706,-651.88,0.00038904,120]
[336492713,1724877311742,-500.0,0.00038904,120]
[336492714,1724877311778,-415.12680901,0.00038904,120]
[336492715,1724877311815,-500.0,0.00038904,120]
[336492716,1724877311850,-500.0,0.00038904,120]
[336492717,1724877311887,-850.15,0.00038904,120]
[336492718,1724877311923,-688.24,0.00038904,120]
[336492719,1724877311961,-875.01,0.00038904,120]
[336492720,1724877311998,-500.0,0.00038904,120]
[336492721,1724877312034,-500.0,0.00038904,120]
[336492722,1724877312071,-364.98,0.00038904,120]
[336492723,1724877312106,-500.0,0.00038904,120]
[336492724,1724877312142,-500.0,0.00038904,120]
[336492725,1724877312177,-500.0,0.00038904,120]
[336492726,1724877312212,-2005.14,0.00038904,120]
[336492727,1724877312246,-500.0,0.00038904,120]
[336492728,1724877312281,-500.0,0.00038904,120]
[336492729,1724877312319,-500.0,0.00038904,120]
[336492730,1724877312356,-470.67084304,0.00038904,120]
[336492731,1724877312389,-500.0,0.00038904,120]
[336492732,1724877312424,-605.52085372,0.00038904,120]
[336492733,1724877312462,-500.0,0.00038904,120]
[336492734,1724877312496,-500.0,0.00038904,120]
[336492735,1724877312531,-500.0,0.00038904,120]
[336492736,1724877312564,-1667.8,0.00038904,120]
[336492737,1724877312600,-500.0,0.00038904,120]
[336492738,1724877312639,-500.0,0.00038904,120]
[336492739,1724877312674,-622.08,0.00038904,120]
[336492740,1724877312707,-1188.65,0.00038904,120]
[336492741,1724877312741,-500.0,0.00038904,120]
[336492742,1724877312776,-1093.11,0.00038904,120]
[336492743,1724877312813,-500.0,0.00038904,120]
[336492744,1724877312849,-500.0,0.00038904,120]
[336492745,1724877312885,-500.0,0.00038904,120]
[336492746,1724877312922,-500.0,0.00038904,120]
[336492747,1724877312959,-500.0,0.00038904,120]
[336492748,1724877312995,-826.26,0.00038904,120]
[336492749,1724877313031,-626.46,0.00038904,120]
[336492750,1724877313067,-1982.83,0.00038904,120]
[336492751,1724877313105,-500.0,0.00038904,120]
[336492752,1724877313144,-783.01,0.00038904,120]
[336492753,1724877313190,-1396.82,0.00038904,120]
[336492754,1724877313244,-500.0,0.00038904,120]
[336492755,1724877313287,-500.0,0.00038904,120]
[336492756,1724877313326,-994.79,0.00038904,120]
[336492757,1724877313367,-500.0,0.00038904,120]
[336492758,1724877313405,-500.0,0.00038904,120]
[336492759,1724877313445,-500.0,0.00038904,120]
[336492760,1724877313499,-500.0,0.00038904,120]
[336492761,1724877313539,-6832.54,0.00038904,120]
[336492762,1724877313578,-500.0,0.00038904,120]
[336492763,1724877313619,-500.0,0.00038904,120]
[336492764,1724877313667,-500.0,0.00038904,120]
[336492765,1724877313912,-1411.98,0.00038904,120]
[336492766,1724877313964,-927.77,0.00038904,120]
[336492767,1724877314006,-500.0,0.00038904,120]
[336492768,1724877314049,-763.88,0.00038904,120]
[336492769,1724877314089,-500.0,0.00038904,120]
[336492770,1724877314130,-500.0,0.00038904,120]
[336492771,1724877314168,-637.95,0.00038904,120]
[336492772,1724877314208,-640.06,0.00038904,120]
[336492773,1724877314248,-500.0,0.00038904,120]
[336492774,1724877314288,-3313.74,0.00038904,120]
[336492775,1724877314326,-500.0,0.00038904,120]
[336492776,1724877314369,-500.0,0.00038904,120]
[336492777,1724877314412,-1676.4,0.00038904,120]
[336492778,1724877314460,-500.0,0.00038904,120]
[336492779,1724877314498,-500.0,0.00038904,120]
[336492780,1724877314535,-500.0,0.00038904,120]
[336492781,1724877314572,-500.0,0.00038904,120]
[336492782,1724877314610,-500.0,0.00038904,120]
[336492783,1724877314651,-500.0,0.00038904,120]
[336492784,1724877314689,-500.0,0.00038904,120]
[336492785,1724877314728,-500.0,0.00038904,120]
[336492786,1724877314768,-500.0,0.00038904,120]
[336492787,1724877314806,-500.0,0.00038904,120]
[336492788,1724877314846,-500.0,0.00038904,120]
[336492789,1724877314884,-568.91,0.00038904,120]
[336492790,1724877314923,-1236.43,0.00038904,120]
[336492791,1724877314961,-1622.16,0.00038904,120]
[336492792,1724877315000,-500.0,0.00038904,120]
[336492793,1724877315038,-537.04,0.00038904,120]
[336492794,1724877315075,-500.0,0.00038904,120]
[336492795,1724877315113,-500.0,0.00038904,120]
[336492796,1724877315152,-742.97,0.00038904,120]
[336492797,1724877315192,-500.0,0.00038904,120]
[336492798,1724877315240,-500.0,0.00038904,120]
[336492799,1724877315281,-3565.67,0.00038904,120]
[336492800,1724877315320,-500.0,0.00038904,120]
[336492801,1724877315360,-500.0,0.00038904,120]
[336492802,1724877315400,-543.04,0.00038904,120]
[336492803,1724877315439,-500.0,0.00038904,120]
[336492804,1724877315484,-500.0,0.00038904,120]
[336492805,1724877315524,-1803.01,0.00038904,120]
[336492806,1724877315563,-3262.73,0.00038904,120]
[336492807,1724877315602,-500.0,0.00038904,120]
[336492808,1724877315640,-500.0,0.00038904,120]
[336492809,1724877315680,-975.02,0.00038904,120]
[336492810,1724877315721,-500.0,0.00038904,120]
[336492811,1724877315760,-500.0,0.00038904,120]
[336492812,1724877315799,-799.71,0.00038904,120]
[336492813,1724877315839,-769.31,0.00038904,120]
[336492814,1724877315879,-500.0,0.00038904,120]
[336492815,1724877315919,-500.0,0.00038904,120]
[336492816,1724877315958,-859.7,0.00038904,120]
[336492817,1724877315997,-2634.91,0.00038904,120]
[336492818,1724877316036,-500.0,0.00038904,120]
[336492819,1724877316077,-500.0,0.00038904,120]
[336492820,1724877316122,-500.0,0.00038904,120]
[336492821,1724877316167,-1619.03,0.00038904,120]
[336492822,1724877316208,-3164.55,0.00038904,120]
[336492823,1724877316247,-500.0,0.00038904,120]
[336492824,1724877316285,-500.0,0.00038904,120]
[336492825,1724877316327,-500.0,0.00038904,120]
[336492826,1724877316372,-500.0,0.00038904,120]
[336492827,1724877316416,-535.22,0.00038904,120]
[336492828,1724877316456,-500.0,0.00038904,120]
[336492829,1724877316494,-1805.09,0.00038904,120]
[336492830,1724877316530,-500.0,0.00038904,120]
[336492831,1724877316569,-500.0,0.00038904,120]
[336492832,1724877316608,-500.0,0.00038904,120]
[336492833,1724877316646,-2266.76,0.00038904,120]
[336492834,1724877316683,-1060.54,0.00038904,120]
[336492835,1724877316722,-1486.92,0.00038904,120]
[336492836,1724877316759,-3141.14,0.00038904,120]
[336492837,1724877316797,-1000.0,0.00038904,120]
[336492838,1724877316836,-500.0,0.00038904,120]
[336492839,1724877316874,-500.0,0.00038904,120]
[336492840,1724877316912,-1391.03,0.00038904,120]
[336492841,1724877316953,-500.0,0.00038904,120]
[336492842,1724877316996,-500.0,0.00038904,120]
[336492843,1724877317035,-869.37,0.00038904,120]
[336492844,1724877317075,-500.0,0.00038904,120]
[336492845,1724877317112,-500.0,0.00038904,120]
[336492846,1724877317150,-500.0,0.00038904,120]
[336492847,1724877317187,-500.0,0.00038904,120]
[336492848,1724877317228,-500.0,0.00038904,120]
[336492849,1724877317265,-5964.72,0.00038904,120]
[336492850,1724877317302,-500.0,0.00038904,120]
[336492851,1724877317342,-500.0,0.00038904,120]
[336492852,1724877317378,-500.0,0.00038904,120]
[336492853,1724877317417,-500.0,0.00038904,120]
[336492854,1724877317459,-3703.3,0.00038904,120]
[336492855,1724877317494,-1221.75,0.00038904,120]
[336492856,1724877317531,-500.0,0.00038904,120]
[336492857,1724877317571,-694.14,0.00038904,120]
[336492858,1724877317611,-500.0,0.00038904,120]
[336492859,1724877317649,-814.43,0.00038904,120]
[336492860,1724877317686,-583.64,0.00038904,120]
[336492861,1724877317727,-4496.05,0.00038904,120]
[336492862,1724877317765,-165.81550313,0.00038904,120]
[336492863,1724877317803,-500.0,0.00038904,120]
[336492864,1724877317840,-500.0,0.00038904,120]